bitfinex/quotes_SOLUSD_20240607
["timestamp","ask_amount","ask_price","bid_price","bid_amount"]
[1717789957080,45.0,162.09,162.06,2.283]
[1717789957961,45.0,162.1,162.06,2.283]
[1717789958279,45.0,162.1,162.07,2.2829]
[1717789958657,45.0,162.1,162.06,2.283]
[1717789958993,45.0,162.1,162.07,2.2829]
[1717789959187,24.13,162.11,162.08,2.2827]
[1717789959355,6.3259,162.13,162.08,2.2827]
[1717789959550,13.81849009,162.13,162.05,4.5663]
[1717789959779,8.9355,162.13,162.08,2.2828]
[1717789959974,6.6534,162.13,162.08,2.2828]
[1717789960490,2.2822,162.12,162.06,2.283]
[1717789961064,47.2822,162.12,162.06,2.283]
[1717789961262,24.13,162.09,162.05,2.2831]
[1717789961681,24.13,162.09,162.06,2.283]
[1717789962191,24.13,162.09,162.05,2.2832]
[1717789962501,24.13,162.09,162.06,2.283]
[1717789962697,24.13,162.09,162.02,4.5671]
[1717789962885,24.13,162.09,162.01,9.1347]
[1717789963087,24.13,162.09,162.06,2.283]
[1717789963274,24.13,162.09,162.03,4.5669]
[1717789963275,24.13,162.09,162.05,2.2832]
[1717789963802,24.13,162.09,162.06,2.2831]
[1717789964675,47.2823,162.12,162.07,2.2829]
[1717789964676,69.13,162.12,162.07,2.2829]
[1717789966184,24.13,162.12,162.07,2.2829]
[1717789966385,26.4122,162.12,162.06,2.283]
[1717789967396,2.2824,162.11,162.05,2.2832]
[1717789967589,45.0,162.11,162.06,2.283]
[1717789967782,47.2824,162.11,162.05,2.2832]
[1717789968997,26.4123,162.12,162.07,2.2829]
[1717789969203,24.13,162.12,162.07,2.2829]
[1717789969581,26.4122,162.12,162.07,2.2829]
[1717789970408,26.4122,162.12,162.06,2.283]
[1717789970712,2.2824,162.11,162.05,2.2831]
[1717789971005,24.13,162.09,162.04,2.2833]
[1717789971709,24.13,162.09,162.06,2.2829]
[1717789972407,24.13,162.12,162.05,6.8497]
[1717789972608,24.13,162.12,162.07,2.2829]
[1717789973446,24.13,162.12,162.08,2.2827]
[1717789977109,24.13,162.12,162.07,2.2828]
[1717789977328,24.13,162.12,162.08,2.2827]
[1717789977528,24.13,162.12,162.05,6.8496]
[1717789977828,24.13,162.15,162.04,15.9813]
[1717789978002,24.13,162.15,162.12,2.2822]
[1717789978699,24.13,162.15,162.09,11.4131]
[1717789978700,24.13,162.15,162.1,4.565]
[1717789978920,24.13,162.15,162.12,2.2822]
[1717789979423,24.13,162.15,162.11,2.2823]
[1717789981001,23.63,162.15,162.11,2.2823]
[1717789981407,32.5063,162.15,162.09,2.2826]
[1717789981614,45.0,162.14,162.09,2.2826]
[1717789981816,24.13,162.12,162.09,2.2826]
[1717789982409,22.63,162.12,162.09,2.2826]
[1717789983122,21.13,162.12,162.08,2.2827]
[1717789984433,27.7022,162.12,162.09,2.2826]
[1717789984934,21.13,162.12,162.09,2.2826]
[1717789985132,21.13,162.12,162.1,2.2825]
[1717789985516,21.13,162.12,162.09,2.2826]
[1717789986231,21.13,162.12,162.08,2.2827]
[1717789988124,21.13,162.12,162.09,2.2826]
[1717789988824,21.13,162.12,162.07,2.2828]
[1717789989002,23.4123,162.12,162.06,2.283]
[1717789989205,4.87922841,162.17,162.11,4.5647]
[1717789989406,24.13,162.19,162.14,2.2819]
[1717789989620,24.13,162.19,162.12,6.8467]
[1717789989922,24.13,162.19,162.16,2.2816]
[1717789990328,28.95622901,162.19,162.15,2.2817]
[1717789990536,35.33782901,162.19,162.14,2.2819]
[1717789991108,35.33782901,162.19,162.11,4.5647]
[1717789991323,24.13,162.16,162.13,2.2819]
[1717789991525,24.13,162.16,162.12,2.2822]
[1717789992329,24.13,162.16,162.13,2.2821]
[1717789992640,24.13,162.16,162.14,2.2819]
[1717789993437,24.13,162.16,162.1,20.5422]
[1717789993438,24.13,162.16,162.13,2.282]
[1717789994139,24.13,162.16,162.1,13.6948]
[1717789994140,24.13,162.16,162.14,2.2819]
[1717789994345,35.27462901,162.19,162.14,2.2819]
[1717789995648,28.95622901,162.19,162.12,4.5644]
[1717789995814,28.95622901,162.19,162.15,2.2817]
[1717789996320,28.95622901,162.19,162.14,2.2819]
[1717789996526,26.77622901,162.19,162.14,2.2819]
[1717789997331,26.77622901,162.19,162.15,2.2818]
[1717789997937,7.32,162.16,162.15,2.2818]
[1717789998138,7.32,162.16,162.14,2.2819]
[1717789998345,7.32,162.15,162.14,2.2819]
[1717789999058,7.32,162.15,162.13,2.282]
[1717789999266,7.32,162.14,162.13,2.282]
[1717789999836,7.32,162.14,162.06,6.2266]
[1717790000031,7.32,162.08,162.06,13.0759]
[1717790000262,7.32,162.1,162.08,10.91]
[1717790000762,7.32,162.1,162.09,2.2826]
[1717790001068,2.2814,162.18,162.12,2.2821]
[1717790001250,7.32,162.13,162.12,2.2822]
[1717790001635,7.32,162.14,162.12,20.5402]
[1717790001847,7.32,162.14,162.13,2.2821]
[1717790002131,5.19892901,162.19,162.17,2.2815]
[1717790002132,0.3727,162.19,162.17,2.2815]
[1717790002462,7.32,162.18,162.17,2.2815]
[1717790003534,0.3727,162.19,162.18,2.2814]
[1717790003757,7.6927,162.19,162.18,2.2814]
[1717790005837,0.3727,162.19,162.18,2.2814]
[1717790008060,0.3727,162.19,162.18,22.5429]
[1717790008254,256.1,162.26,162.25,2.2804]
[1717790008568,24.2199,162.29,162.23,2.2806]
[1717790009343,24.2199,162.29,162.24,2.2805]
[1717790009544,24.2199,162.29,162.23,2.2806]
[1717790009744,24.2199,162.29,162.24,2.2805]
[1717790009962,24.2199,162.29,162.23,2.2806]
[1717790011171,24.2199,162.29,162.22,2.2807]
[1717790011359,2.28,162.28,162.22,2.2807]
[1717790011544,2.28,162.28,162.2,4.5621]
[1717790011749,45.0,162.28,162.23,2.2807]
[1717790012174,45.0,162.28,162.18,23.0378]
[1717790012345,4.92975656,162.3,162.26,2.2802]
[1717790012545,21.94,162.3,162.26,2.2802]
[1717790013561,21.94,162.3,162.18,23.0378]
[1717790013562,21.94,162.3,162.27,2.28]
[1717790013940,2.2798,162.29,162.2,9.1241]
[1717790014245,24.2197,162.3,162.24,2.2805]
[1717790014446,21.94,162.27,162.21,4.5619]
[1717790014665,21.94,162.27,162.23,2.2806]
[1717790015159,21.94,162.27,162.24,2.2805]
[1717790015756,25.374371,162.33,162.19,15.9455]
[1717790015757,4.860171,162.33,162.19,15.9455]
[1717790015957,21.94,162.32,162.28,2.2799]
[1717790016155,21.94,162.32,162.3,2.2796]
[1717790016369,5.05255893,162.34,162.3,2.2796]
[1717790017268,7.33165893,162.34,162.28,2.2799]
[1717790017470,7.33165893,162.34,162.26,4.5603]
[1717790017649,7.33165893,162.34,162.29,2.2798]
[1717790018070,45.0,162.33,162.29,2.2798]
[1717790018369,14.17385893,162.34,162.3,2.2797]
[1717790018566,9.1213,162.34,162.3,2.2797]
[1717790018751,9.1213,162.34,162.27,4.5602]
[1717790018951,9.1213,162.34,162.29,2.2798]
[1717790019766,9.1213,162.34,162.26,9.1206]
[1717790019958,21.94,162.35,162.28,4.5599]
[1717790020154,45.0,162.34,162.28,4.5599]
[1717790020360,21.94,162.38,162.26,21.9591]
[1717790020679,21.94,162.38,162.31,4.5591]
[1717790020885,21.94,162.38,162.33,2.2792]
[1717790021587,21.94,162.39,162.34,2.2791]
[1717790021751,21.94,162.39,162.26,21.9591]
[1717790022063,21.94,162.39,162.3,9.1184]
[1717790022274,21.94,162.39,162.34,2.2791]
[1717790022574,26.86026119,162.39,162.34,2.2791]
[1717790023467,21.94,162.39,162.35,2.2789]
[1717790023671,21.94,162.39,162.36,2.2788]
[1717790024289,21.94,162.39,162.26,21.9591]
[1717790024476,24.2184,162.39,162.3,4.5591]
[1717790024779,24.2184,162.39,162.36,2.2788]
[1717790024780,21.94,162.39,162.36,2.2788]
[1717790024954,21.94,162.39,162.37,2.2787]
[1717790025269,21.94,162.39,162.38,2.2786]
[1717790025581,21.94,162.42,162.38,2.2786]
[1717790026087,21.94,162.42,162.37,2.2786]
[1717790026382,24.218,162.42,162.37,2.2786]
[1717790026880,21.94,162.42,162.37,2.2786]
[1717790027773,21.94,162.42,162.38,5.0]
[1717790028182,21.94,162.42,162.38,7.2785]
[1717790029374,21.94,162.42,162.39,2.2784]
[1717790029588,21.94,162.42,162.38,9.5571]
[1717790029752,21.94,162.45,162.38,9.5571]
[1717790029950,3.94853277,162.48,162.38,9.5571]
[1717790029951,2.2772,162.48,162.42,2.2779]
[1717790030154,21.94,162.46,162.42,2.2779]
[1717790030776,21.94,162.46,162.4,4.5565]
[1717790030984,21.94,162.46,162.42,2.278]
[1717790031159,21.94,162.46,162.38,5.0]
[1717790031160,24.2175,162.46,162.38,9.557]
[1717790031469,24.2175,162.46,162.4,2.2782]
[1717790031671,24.2175,162.46,162.41,2.2781]
[1717790032066,21.94,162.46,162.41,2.2781]
[1717790032354,24.2175,162.46,162.4,2.2782]
[1717790032555,45.0,162.45,162.41,2.2781]
[1717790032978,45.0,162.44,162.4,2.2783]
[1717790033178,45.0,162.45,162.4,2.2783]
[1717790033382,21.94,162.46,162.42,2.278]
[1717790033770,21.94,162.46,162.41,2.2781]
[1717790034079,24.2175,162.46,162.4,2.2782]
[1717790034788,24.2175,162.46,162.41,2.2781]
[1717790034971,21.94,162.46,162.42,2.2779]
[1717790035293,2.2773,162.47,162.41,2.2781]
[1717790035490,47.2773,162.47,162.41,2.2781]
[1717790035795,45.0,162.47,162.42,2.278]
[1717790036882,21.94,162.45,162.42,2.278]
[1717790038695,21.94,162.45,162.42,7.278]
[1717790039991,45.0,162.47,162.42,5.0]
[1717790040295,21.94,162.46,162.43,2.2778]
[1717790040475,21.94,162.46,162.42,5.0]
[1717790041300,21.94,162.46,162.42,7.278]
[1717790041501,21.94,162.46,162.42,5.0]
[1717790041900,7.29,162.43,162.42,5.0]
[1717790043987,21.88,162.43,162.42,5.0]
[1717790045207,21.88,162.43,162.42,7.278]
[1717790046497,45.0,162.47,162.42,7.278]
[1717790046697,45.0,162.47,162.43,2.2778]
[1717790046905,26.84987163,162.48,162.44,2.2777]
[1717790047195,4.96987163,162.48,162.44,2.2777]
[1717790047497,33.272,162.48,162.45,2.2775]
[1717790047702,21.88,162.48,162.45,2.2775]
[1717790047886,21.88,162.48,162.46,2.2774]
[1717790048401,21.88,162.48,162.44,2.2777]
[1717790050501,21.88,162.48,162.45,2.2775]
[1717790051411,21.88,162.48,162.42,16.3898]
[1717790051412,21.88,162.48,162.46,2.2774]
[1717790051580,21.88,162.48,162.45,2.2775]
[1717790053691,21.88,162.48,162.44,2.2776]
[1717790053888,21.88,162.48,162.42,5.0]
[1717790053889,21.88,162.48,162.45,2.2776]
[1717790054094,21.88,162.47,162.45,2.2776]
[1717790055608,21.88,162.47,162.44,2.2776]
[1717790055810,21.88,162.47,162.45,2.2776]
[1717790056307,21.88,162.47,162.44,2.2776]
[1717790057284,21.88,162.47,162.45,2.2776]
[1717790057697,21.88,162.47,162.44,2.2776]
[1717790057896,21.88,162.47,162.44,2.2777]
[1717790058783,2.2779,162.43,162.42,5.0]
[1717790058983,24.1579,162.43,162.36,6.5243]
[1717790059180,24.1585,162.39,162.33,2.2791]
[1717790059384,21.88,162.34,162.33,2.2793]
[1717790059587,21.88,162.34,162.32,2.2793]
[1717790059800,21.88,162.34,162.33,2.2793]
[1717790060305,21.88,162.34,162.33,8.6501]
[1717790060502,2.278,162.42,162.36,2.2788]
[1717790060804,21.88,162.38,162.37,2.2787]
[1717790061005,21.75505679,162.38,162.36,2.2788]
[1717790061403,21.75505679,162.38,162.37,2.2787]
[1717790062116,21.75505679,162.38,162.36,2.2788]
[1717790063600,21.75505679,162.38,162.35,2.2789]
[1717790064038,7.3,162.36,162.35,2.2789]
[1717790066405,7.3,162.36,162.35,7.2789]
[1717790067031,7.3,162.36,162.33,5.0]
[1717790067237,14.6,162.34,162.33,5.0]
[1717790067402,14.6,162.34,162.33,7.2792]
[1717790067609,2.2794,162.33,162.28,2.2799]
[1717790067824,81.5,162.34,162.23,9.1224]
[1717790067825,7.3,162.29,162.26,2.2802]
[1717790068034,36.5,162.27,162.26,2.2802]
[1717790068611,7.3,162.27,162.26,2.2802]
[1717790069811,2.2793,162.33,162.28,2.2799]
[1717790070005,21.92,162.29,162.28,2.2799]
[1717790070209,21.92,162.32,162.3,2.2796]
[1717790070413,21.92,162.32,162.26,4.5603]
[1717790070712,21.92,162.32,162.28,2.2799]
[1717790071128,21.92,162.29,162.28,2.2799]
[1717790072114,21.92,162.29,162.27,2.2801]
[1717790072313,21.92,162.29,162.28,2.28]
[1717790072746,21.92,162.29,162.25,2.2804]
[1717790072917,21.92,162.26,162.25,2.2804]
[1717790073446,21.92,162.26,162.21,11.4046]
[1717790073659,21.92,162.26,162.2,9.1242]
[1717790073830,21.92,162.23,162.21,2.2809]
[1717790074213,43.84,162.24,162.22,2.2808]
[1717790074412,21.92,162.24,162.22,2.2808]
[1717790074948,21.92,162.24,162.23,2.2807]
[1717790075159,6.521,162.29,162.24,2.2805]
[1717790075160,21.92,162.25,162.24,2.2805]
[1717790075339,21.92,162.25,162.23,2.2806]
[1717790075645,21.92,162.25,162.22,2.2808]
[1717790076016,21.92,162.25,162.23,2.2807]
[1717790076223,21.92,162.25,162.24,2.2805]
[1717790078647,21.92,162.3,162.28,2.2799]
[1717790079317,21.92,162.3,162.29,2.2798]
[1717790079554,21.92,162.3,162.28,2.2799]
[1717790080251,21.92,162.3,162.29,2.2798]
[1717790080556,21.92,162.33,162.29,2.2798]
[1717790080757,21.92,162.33,162.27,4.5602]
[1717790081257,21.92,162.33,162.3,2.2796]
[1717790081559,21.91,162.33,162.3,2.2796]
[1717790081923,21.91,162.33,162.32,2.2794]
[1717790083359,21.91,162.33,162.31,2.2795]
[1717790083565,21.91,162.33,162.32,2.2794]
[1717790084378,21.91,162.36,162.34,2.279]
[1717790084944,21.91,162.36,162.35,2.279]
[1717790085146,21.91,162.36,162.34,2.2791]
[1717790085552,21.91,162.36,162.33,2.2792]
[1717790085759,21.91,162.36,162.34,2.2791]
[1717790086965,21.91,162.36,162.31,4.5589]
[1717790086966,21.91,162.36,162.35,2.279]
[1717790087150,21.91,162.36,162.34,2.279]
[1717790087570,21.91,162.36,162.35,2.279]
[1717790089676,21.91,162.36,162.34,7.2791]
[1717790089971,21.91,162.38,162.36,2.2788]
[1717790090156,21.91,162.39,162.37,2.2787]
[1717790090487,21.91,162.39,162.36,2.2788]
[1717790091261,21.91,162.39,162.38,2.2786]
[1717790091577,21.91,162.42,162.37,6.836]
[1717790091760,21.91,162.42,162.41,2.2781]
[1717790093601,21.91,162.42,162.4,2.2782]
[1717790093780,21.91,162.42,162.38,10.8899]
[1717790094088,21.91,162.42,162.4,2.2782]
[1717790095876,21.91,162.42,162.41,2.2781]
[1717790096875,21.91,162.42,162.4,2.2782]
[1717790097493,21.91,162.42,162.39,2.2784]
[1717790097795,21.91,162.42,162.4,2.2782]
[1717790100394,19.17172391,162.47,162.34,11.2835]
[1717790100599,21.91,162.45,162.44,2.2776]
[1717790100774,21.91,162.45,162.44,2.2777]
[1717790100974,21.91,162.45,162.43,2.2778]
[1717790101170,21.91,162.45,162.42,2.278]
[1717790101478,21.91,162.45,162.38,6.8357]
[1717790101675,21.91,162.44,162.42,2.2779]
[1717790101998,81.45,162.43,162.41,2.2781]
[1717790102306,36.45,162.42,162.4,2.2782]
[1717790102597,36.45,162.41,162.4,2.2782]
[1717790102801,7.29,162.41,162.4,2.2782]
[1717790103176,33.98893695,162.48,162.39,6.8352]
[1717790103400,45.0,162.47,162.43,2.2779]
[1717790103580,7.29,162.44,162.41,2.2781]
[1717790103771,7.29,162.42,162.41,2.2781]
[1717790103976,7.29,162.42,162.4,2.2783]
[1717790103977,14.58,162.42,162.4,2.2783]
[1717790104191,14.58,162.41,162.34,11.2835]
[1717790104505,7.29,162.35,162.34,11.2835]
[1717790104682,7.29,162.35,162.34,7.2791]
[1717790104878,7.3,162.35,162.34,7.2791]
[1717790105116,7.3,162.35,162.34,5.0]
[1717790105409,36.5,162.35,162.31,2.2794]
[1717790105581,2.2787,162.38,162.31,2.2794]
[1717790105582,36.5,162.32,162.31,2.2794]
[1717790106795,36.5,162.32,162.27,6.6506]
[1717790106973,29.2,162.32,162.31,2.2795]
[1717790107175,36.5,162.32,162.31,2.2795]
[1717790107992,18.51,162.38,162.32,2.2793]
[1717790108305,28.1219,162.4,162.27,6.6506]
[1717790108474,28.1219,162.4,162.34,2.2791]
[1717790108475,21.91,162.37,162.34,2.2791]
[1717790108882,21.91,162.37,162.33,2.2792]
[1717790109288,21.91,162.37,162.34,2.2791]
[1717790109498,45.0,162.36,162.34,2.2791]
[1717790109908,45.0,162.36,162.33,2.2792]
[1717790110093,21.91,162.34,162.27,6.6506]
[1717790110294,21.91,162.31,162.28,2.2798]
[1717790110887,21.91,162.31,162.29,2.2798]
[1717790111104,21.91,162.31,162.25,4.5608]
[1717790111405,21.91,162.27,162.24,5.0]
[1717790111607,16.91,162.27,162.25,2.2803]
[1717790112306,16.91,162.27,162.24,7.2805]
[1717790112508,16.91,162.27,162.25,2.2804]
[1717790113414,16.91,162.27,162.24,7.2805]
[1717790113602,16.91,162.27,162.25,2.2804]
[1717790114917,16.91,162.27,162.25,7.2804]
[1717790116316,16.91,162.27,162.25,5.0]
[1717790117020,16.91,162.27,162.25,7.2804]
[1717790117510,16.91,162.27,162.25,5.0]
[1717790118316,45.0,162.26,162.25,5.0]
[1717790119119,69.8766,162.26,162.16,4.5631]
[1717790119293,21.91,162.21,162.19,2.2812]
[1717790120233,21.91,162.21,162.2,2.2811]
[1717790120404,21.91,162.21,162.19,2.2812]
[1717790120608,21.91,162.21,162.2,2.2811]
[1717790122616,53.6469,162.26,162.2,2.2811]
[1717790122821,21.91,162.23,162.2,2.2811]
[1717790123015,21.91,162.23,162.21,2.2809]
[1717790126926,21.91,162.23,162.22,2.2808]
[1717790127327,20.7901,162.27,162.21,11.4046]
[1717790127328,21.91,162.27,162.21,11.4046]
[1717790127526,7.17512741,162.33,162.18,6.623]
[1717790127734,21.91,162.29,162.28,2.28]
[1717790128123,21.91,162.29,162.27,2.28]
[1717790128321,21.91,162.29,162.28,2.28]
[1717790128538,11.4065,162.31,162.29,2.2798]
[1717790128857,7.17512741,162.37,162.26,6.4808]
[1717790129017,21.91,162.36,162.32,2.2793]
[1717790129220,21.91,162.36,162.33,2.2792]
[1717790129751,21.91,162.36,162.32,2.2794]
[1717790129966,21.91,162.36,162.31,2.2795]
[1717790130311,21.91,162.33,162.26,17.8817]
[1717790130752,21.91,162.33,162.3,2.2797]
[1717790130921,21.91,162.33,162.31,2.2795]
[1717790131344,21.91,162.33,162.32,2.2794]
[1717790131637,21.91,162.35,162.33,2.2793]
[1717790132016,21.91,162.35,162.34,2.2791]
[1717790137433,21.91,162.35,162.32,5.0]
[1717790137938,21.91,162.35,162.32,7.2794]
[1717790138143,22.2836,162.35,162.32,7.2794]
[1717790138534,22.2836,162.35,162.32,5.0]
[1717790138922,22.2836,162.35,162.33,2.2792]
[1717790139538,22.2836,162.35,162.32,7.2794]
[1717790139741,22.2836,162.35,162.32,5.0]
[1717790140044,51.0065,162.34,162.32,5.0]
[1717790140228,53.2857,162.34,162.32,5.0]
[1717790140638,2.2793,162.33,162.32,3.14912119]
[1717790140844,2.2793,162.33,162.27,2.28]
[1717790141159,2.2793,162.33,162.26,2.2802]
[1717790141160,21.91,162.29,162.26,2.2802]
[1717790141449,21.91,162.29,162.25,2.2804]
[1717790141647,21.91,162.26,162.25,2.2804]
[1717790141946,21.91,162.26,162.2,11.4053]
[1717790142326,21.91,162.26,162.19,6.8436]
[1717790142533,21.91,162.26,162.22,2.2807]
[1717790142734,21.91,162.26,162.24,2.2804]
[1717790142929,21.91,162.26,162.2,6.8434]
[1717790143151,21.91,162.26,162.21,4.5618]
[1717790143354,21.91,162.26,162.24,2.2805]
[1717790144747,21.91,162.26,162.25,2.2804]
[1717790145329,21.91,162.29,162.24,4.561]
[1717790145529,21.91,162.32,162.28,2.2799]
[1717790145735,21.91,162.32,162.29,2.2798]
[1717790145931,21.91,162.32,162.27,2.2801]
[1717790146753,21.91,162.32,162.28,2.28]
[1717790147047,21.91,162.32,162.27,2.2801]
[1717790147355,24.1894,162.32,162.27,2.2801]
[1717790147556,21.91,162.32,162.28,2.2799]
[1717790148546,21.91,162.32,162.24,20.5245]
[1717790148547,21.91,162.32,162.29,2.2798]
[1717790149134,26.86523325,162.32,162.29,2.2798]
[1717790149343,21.91,162.32,162.3,2.2797]
[1717790149540,21.91,162.32,162.31,2.2795]
[1717790149859,0.3736,162.35,162.28,9.5598]
[1717790149860,22.2836,162.35,162.28,9.5598]
[1717790150156,22.2836,162.35,162.3,2.2797]
[1717790150455,0.3736,162.35,162.31,2.2795]
[1717790150644,22.2836,162.35,162.31,2.2795]
[1717790150838,22.2836,162.35,162.32,2.2794]
[1717790151164,22.2836,162.35,162.28,9.5598]
[1717790151165,0.3736,162.35,162.33,2.2791]
[1717790152555,0.3736,162.35,162.32,2.2793]
[1717790152759,0.3736,162.35,162.34,2.2791]
[1717790156356,0.3736,162.35,162.3,2.2797]
[1717790156556,0.3736,162.35,162.31,2.2795]
[1717790156557,21.91,162.33,162.31,2.2795]
[1717790156861,21.91,162.33,162.32,2.2794]
[1717790157056,0.3736,162.35,162.32,2.2794]
[1717790157249,21.91,162.34,162.33,2.2793]
[1717790157456,0.3736,162.35,162.34,2.2791]
[1717790157664,0.3736,162.35,162.33,2.2792]
[1717790157860,0.3736,162.35,162.34,2.2791]
[1717790158063,21.91,162.37,162.34,2.2791]
[1717790158449,21.91,162.37,162.33,2.2793]
[1717790158648,21.91,162.37,162.34,2.2791]
[1717790158871,21.91,162.37,162.33,2.2792]
[1717790159269,21.91,162.37,162.34,2.2791]
[1717790160379,21.91,162.37,162.31,4.559]
[1717790160380,21.91,162.37,162.35,2.279]
[1717790161075,21.91,162.37,162.34,2.2791]
[1717790162251,21.91,162.37,162.35,2.279]
[1717790162573,21.91,162.37,162.32,9.1174]
[1717790162879,21.91,162.37,162.35,2.2789]
[1717790164065,4.86764409,162.39,162.36,2.2788]
[1717790164271,6.8389,162.4,162.36,2.2788]
[1717790164272,21.91,162.37,162.36,2.2788]
[1717790165479,21.91,162.37,162.34,2.279]
[1717790165975,21.91,162.37,162.32,20.5142]
[1717790166160,33.72382594,162.4,162.36,2.2788]
[1717790166368,21.91,162.37,162.36,2.2788]
[1717790167963,21.91,162.38,162.37,2.2787]
[1717790168866,21.91,162.38,162.36,2.2788]
[1717790169663,4.97492594,162.4,162.37,2.2787]
[1717790169966,21.91,162.41,162.4,2.2782]
[1717790170676,21.91,162.41,162.36,2.2788]
[1717790170880,21.91,162.37,162.36,2.2787]
[1717790171079,21.91,162.37,162.34,4.5582]
[1717790171080,21.91,162.37,162.3,6.839]
[1717790171384,21.91,162.37,162.29,31.676]
[1717790171385,21.91,162.34,162.29,6.2312]
[1717790171880,21.91,162.34,162.31,2.2795]
[1717790172262,21.91,162.34,162.32,2.2794]
[1717790173665,21.91,162.34,162.33,2.2793]
[1717790174786,21.91,162.34,162.32,2.2793]
[1717790174992,21.91,162.34,162.29,4.5597]
[1717790174993,21.91,162.34,162.28,5.0]
[1717790175186,21.91,162.3,162.28,5.0]
[1717790175383,21.91,162.3,162.29,2.2798]
[1717790175581,29.31495381,162.3,162.29,2.2798]
[1717790175973,21.91,162.3,162.29,2.2798]
[1717790181792,18.51,162.35,162.31,2.2795]
[1717790181989,21.91,162.32,162.31,2.2795]
[1717790182292,29.31447521,162.32,162.28,5.0]
[1717790182485,29.31447521,162.32,162.29,2.2797]
[1717790182694,21.91,162.32,162.3,2.2797]
[1717790183183,21.91,162.32,162.31,2.2795]
[1717790183384,29.31447403,162.32,162.31,2.2795]
[1717790184086,7.40447403,162.32,162.31,2.2795]
[1717790184295,7.40431574,162.34,162.33,2.2793]
[1717790184596,7.40431574,162.34,162.3,4.5592]
[1717790184597,7.40431574,162.34,162.32,2.2793]
[1717790185295,7.40431574,162.34,162.31,2.2795]
[1717790185518,7.40431574,162.34,162.32,2.2794]
[1717790185894,7.40431574,162.34,162.33,2.2793]
[1717790186198,7.40431574,162.34,162.32,2.2793]
[1717790189614,7.40431574,162.34,162.31,2.2795]
[1717790192087,7.77791574,162.34,162.31,2.2795]
[1717790192313,7.40431574,162.33,162.31,2.2795]
[1717790193709,7.40431574,162.33,162.28,5.0]
[1717790194009,21.91,162.29,162.26,2.2802]
[1717790194594,21.91,162.29,162.27,2.2801]
[1717790194905,21.91,162.29,162.28,2.28]
[1717790195085,7.40575255,162.29,162.28,2.28]
[1717790195287,66.91,162.32,162.29,2.2798]
[1717790195485,7.40564696,162.31,162.28,2.2799]
[1717790195710,7.40564696,162.3,162.28,2.2799]
[1717790195902,7.40564696,162.31,162.27,2.2801]
[1717790196084,2.2799,162.29,162.24,2.2804]
[1717790196285,29.31564696,162.28,162.25,2.2803]
[1717790196617,7.40564696,162.27,162.25,2.2803]
[1717790197118,21.91,162.28,162.25,2.2803]
[1717790197289,7.40587615,162.27,162.25,2.2803]